fUSD/lending_fUSD_20250823
["ID","MTS","AMOUNT","RATE_DAILY","PERIOD"]
[381033505,1755963041162,-666.0,0.00016438,3]
[381033506,1755963041172,-600.0,0.00016438,2]
[381033507,1755963041181,-600.0,0.00016438,2]
[381033508,1755963041191,-600.0,0.00016438,2]
[381033509,1755963041201,-600.0,0.00016438,2]
[381033510,1755963041210,-600.0,0.00016438,2]
[381033511,1755963041220,-600.0,0.00016438,2]
[381033512,1755963041230,-600.0,0.00016438,2]
[381033513,1755963041240,-600.0,0.00016438,2]
[381033514,1755963041249,-600.0,0.00016438,2]
[381033515,1755963041259,-600.0,0.00016438,2]
[381033516,1755963041268,-600.0,0.00016438,2]
[381033517,1755963041278,-500.0,0.00016462,2]
[381033518,1755963041288,-500.0,0.00016486,2]
[381033519,1755963041298,-181.0,0.000165,2]
[381033520,1755963041308,-500.0,0.0001651,2]
[381033521,1755963041317,-501.96369864,0.00016523,2]
[381033522,1755963041327,-500.0,0.00016534,2]
[381033523,1755963041338,-500.0,0.00016559,2]
[381033524,1755963041352,-500.0,0.00016583,2]
[381033525,1755963041362,-500.0,0.00016607,2]
[381033526,1755963041372,-500.0,0.00016631,2]
[381033527,1755963041382,-500.0,0.00016655,2]
[381033528,1755963041392,-500.0,0.00016679,2]
[381033529,1755963041401,-169.57,0.00016688,2]
[381033530,1755963041411,-500.0,0.00016703,2]
[381033531,1755963041423,-158.44,0.00016712,2]
[381033532,1755963041432,-1078.84,0.00016712,2]
[381033533,1755963041442,-408.48,0.00016712,2]
[381033534,1755963041451,-408.48,0.00016712,2]
[381033535,1755963041461,-408.48,0.00016712,2]
[381033536,1755963041470,-408.48,0.00016712,2]
[381033537,1755963041481,-336.51,0.00016712,2]
[381033538,1755963041490,-415.92,0.00016712,2]
[381033539,1755963041500,-500.0,0.00016727,2]
[381033540,1755963041510,-500.0,0.00016751,2]
[381033541,1755963041520,-500.0,0.00016775,2]
[381033542,1755963041530,-500.0,0.00016799,2]
[381033543,1755963041539,-2808.24,0.000168,2]
[381033544,1755963041549,-7020.6,0.000168,2]
[381033545,1755963041559,-500.0,0.00016823,2]
[381033546,1755963041569,-501.96369864,0.00016831,2]
[381033547,1755963041579,-500.0,0.00016847,2]
[381033548,1755963041588,-500.0,0.00016871,2]
[381033549,1755963041597,-500.0,0.00016895,2]
[381033550,1755963041606,-300.0,0.00016899,2]
[381033551,1755963041616,-175566.53,0.000169,2]
[381033552,1755963041626,-1000.0,0.00016918,2]
[381033553,1755963041636,-500.0,0.00016919,2]
[381033554,1755963041646,-500.0,0.00016943,2]
[381033555,1755963041656,-500.0,0.00016967,2]
[381033556,1755963041665,-1069.00027272,0.00016986,2]
[381033557,1755963041675,-500.0,0.00016991,2]
[381033558,1755963041685,-300.0,0.00016999,2]
[381033559,1755963041695,-51415.75756611,0.00017,2]
[381033560,1755963041704,-50397.67274759,0.00017,2]
[381033561,1755963041714,-5000.0,0.00017,3]
[381033562,1755963041724,-266.0,0.00017013,2]
[381033563,1755963041737,-500.0,0.00017015,2]
[381033564,1755963041747,-500.0,0.00017039,2]
[381033565,1755963041757,-500.0,0.00017063,2]
[381033566,1755963041767,-500.0,0.00017087,2]
[381033567,1755963041776,-2808.24,0.000171,2]
[381033568,1755963041787,-6006.58,0.000171,2]
[381033569,1755963041797,-1824.0,0.000171,2]
[381033570,1755963041807,-7020.6,0.000171,2]
[381033571,1755963041817,-500.0,0.00017111,2]
[381033572,1755963041827,-743.77,0.00017123,2]
[381033573,1755963041837,-500.0,0.00017135,2]
[381033574,1755963041848,-501.96369864,0.0001714,2]
[381033575,1755963041861,-500.0,0.00017159,2]
[381033576,1755963041871,-408.48,0.00017178,2]
[381033577,1755963041882,-500.0,0.00017183,2]
[381033578,1755963041893,-500.0,0.00017207,2]
[381033579,1755963041903,-500.0,0.00017231,2]
[381033580,1755963041913,-500.0,0.00017255,2]
[381033581,1755963041922,-500.0,0.0001728,2]
[381033582,1755963041932,-500.0,0.00017304,2]
[381033583,1755963041943,-500.0,0.00017328,2]
[381033584,1755963041953,-500.0,0.00017352,2]
[381033585,1755963041963,-179.68,0.0001736,2]
[381033586,1755963041972,-500.0,0.00017376,2]
[381033587,1755963041986,-173.67,0.00017381,2]
[381033588,1755963041996,-1185.08,0.00017381,2]
[381033589,1755963042006,-1185.08,0.00017381,2]
[381033590,1755963042017,-349.31,0.00017381,2]
[381033591,1755963042026,-300.0,0.00017381,2]
[381033592,1755963042036,-539.5,0.00017381,2]
[381033593,1755963042045,-300.0,0.00017397,2]
[381033594,1755963042055,-500.0,0.000174,2]
[381033595,1755963042065,-500.0,0.00017424,2]
[381033596,1755963042075,-500.0,0.00017448,2]
[381033597,1755963042085,-501.96369864,0.00017448,2]
[381033598,1755963042095,-160.50645651,0.00017456,2]
[381033600,1755963042104,-635.66305466,0.00017459,2]
[381033601,1755963042114,-500.0,0.00017472,2]
[381033602,1755963042126,-500.0,0.00017496,2]
[381033603,1755963042136,-20000.0,0.000175,2]
[381033604,1755963042146,-936.77,0.00017514,2]
[381033605,1755963042156,-468.91,0.00017514,2]
[381033606,1755963042165,-469.06,0.00017515,2]
[381033607,1755963042175,-469.06,0.00017515,2]
[381033608,1755963042185,-799.21,0.00017515,2]
[381033609,1755963042195,-799.21,0.00017515,2]
[381033610,1755963042205,-469.06,0.00017515,2]
[381033611,1755963042214,-329.65,0.00017515,2]
[381033612,1755963042225,-500.0,0.0001752,2]
[381033613,1755963042244,-408.48,0.00017534,2]
[381033614,1755963042256,-500.0,0.00017544,2]
[381033615,1755963042265,-334.5472959,0.00017551,2]
[381033616,1755963042275,-287.61899177,0.00017551,2]
[381033617,1755963042284,-500.0,0.00017568,2]
[381033618,1755963042293,-500.0,0.00017592,2]
[381033619,1755963042303,-164.11,0.000176,3]
[381033620,1755963042312,-500.0,0.00017616,2]
[381033621,1755963042321,-300.0,0.00017619,2]
[381033622,1755963042330,-300.0,0.00017619,2]
[381033623,1755963042341,-220707.76,0.0001762,2]
[381033624,1755963042356,-151.0,0.0001762,2]
[381033625,1755963042366,-1137.142783,0.0001762,2]
[381033626,1755963042375,-1137.142783,0.0001762,2]
[381033627,1755963042384,-151.0,0.0001762,2]
[381033628,1755963042394,-1137.142783,0.0001762,2]
[381033629,1755963042404,-151.0,0.0001762,2]
[381033630,1755963042413,-1137.142783,0.0001762,2]
[381033631,1755963042423,-1121.790224,0.0001762,2]
[381033632,1755963042433,-171.150891,0.0001762,2]
[381033633,1755963042443,-1121.790224,0.0001762,2]
[381033634,1755963042452,-171.150891,0.0001762,2]
[381033635,1755963042461,-179.113786,0.0001762,2]
[381033636,1755963042471,-1121.790224,0.0001762,2]
[381033637,1755963042481,-241.536099,0.0001762,2]
[381033638,1755963042491,-151.0,0.0001762,2]
[381033639,1755963042501,-171.150891,0.0001762,2]
[381033640,1755963042512,-525.468122,0.0001762,2]
[381033641,1755963042522,-179.113786,0.0001762,2]
[381033642,1755963042531,-1121.790224,0.0001762,2]
[381033643,1755963042541,-241.536099,0.0001762,2]
[381033644,1755963042550,-525.468122,0.0001762,2]
[381033645,1755963042560,-171.150891,0.0001762,2]
[381033646,1755963042569,-179.113786,0.0001762,2]
[381033647,1755963042579,-241.536099,0.0001762,2]
[381033648,1755963042588,-525.468122,0.0001762,2]
[381033649,1755963042598,-179.113786,0.0001762,2]
[381033650,1755963042608,-1701.967032,0.0001762,2]
[381033651,1755963042618,-151.0,0.0001762,2]
[381033652,1755963042628,-241.536099,0.0001762,2]
[381033653,1755963042637,-525.468122,0.0001762,2]
[381033654,1755963042647,-1701.967032,0.0001762,2]
[381033655,1755963042656,-1701.967032,0.0001762,2]
[381033656,1755963042666,-1701.967032,0.0001762,2]
[381033657,1755963042676,-151.0,0.0001762,2]
[381033658,1755963042685,-216.820444,0.0001762,2]
[381033659,1755963042695,-151.0,0.0001762,2]
[381033660,1755963042705,-151.0,0.0001762,2]
[381033661,1755963042715,-151.144145,0.0001762,2]
[381033662,1755963042725,-151.0,0.0001762,2]
[381033663,1755963042736,-161.6576,0.0001762,2]
[381033664,1755963042745,-151.054298,0.0001762,2]
[381033665,1755963042754,-151.0,0.0001762,2]
[381033666,1755963042763,-2182.797836,0.0001762,2]
[381033667,1755963042773,-2182.797836,0.0001762,2]
[381033668,1755963042782,-2182.797836,0.0001762,2]
[381033669,1755963042791,-2182.797836,0.0001762,2]
[381033670,1755963042801,-425.989063,0.0001762,2]
[381033671,1755963042811,-425.989063,0.0001762,2]
[381033672,1755963042820,-151.0,0.0001762,2]
[381033673,1755963042830,-425.989063,0.0001762,2]
[381033674,1755963042839,-151.0,0.0001762,2]
[381033675,1755963042849,-2718.160065,0.0001762,2]
[381033676,1755963042860,-425.989063,0.0001762,2]
[381033677,1755963042870,-2718.160065,0.0001762,2]
[381033678,1755963042880,-2718.160065,0.0001762,2]
[381033679,1755963042891,-2718.160065,0.0001762,2]
[381033680,1755963042903,-151.0,0.0001762,2]
[381033681,1755963042914,-435.273855,0.0001762,2]
[381033682,1755963042924,-435.273855,0.0001762,2]
[381033683,1755963042933,-435.273855,0.0001762,2]
[381033684,1755963042943,-220.403461,0.0001762,2]
[381033685,1755963042952,-151.0,0.0001762,2]
[381033686,1755963042962,-282.18065,0.0001762,2]
[381033687,1755963042971,-151.0,0.0001762,2]
[381033688,1755963042981,-282.18065,0.0001762,2]
[381033689,1755963042991,-282.18065,0.0001762,2]
[381033690,1755963043001,-435.273855,0.0001762,2]
[381033691,1755963043010,-151.0,0.0001762,2]
[381033692,1755963043020,-282.18065,0.0001762,2]
[381033693,1755963043030,-3503.644184,0.0001762,2]
[381033694,1755963043040,-248.758551,0.0001762,2]
[381033695,1755963043050,-3503.644184,0.0001762,2]
[381033696,1755963043060,-248.758551,0.0001762,2]
[381033697,1755963043070,-3503.644184,0.0001762,2]
[381033698,1755963043080,-1682.055688,0.0001762,2]
[381033699,1755963043090,-248.758551,0.0001762,2]
[381033700,1755963043102,-3503.644184,0.0001762,2]
[381033701,1755963043112,-248.758551,0.0001762,2]
[381033702,1755963043121,-1682.055688,0.0001762,2]
[381033703,1755963043132,-1682.055688,0.0001762,2]
[381033704,1755963043153,-1682.055688,0.0001762,2]
[381033705,1755963043174,-151.0,0.0001762,2]
[381033706,1755963043194,-151.0,0.0001762,2]
[381033707,1755963043206,-2567.792111,0.0001762,2]
[381033708,1755963043217,-151.0,0.0001762,2]
[381033709,1755963043226,-2567.792111,0.0001762,2]
[381033710,1755963043243,-151.0,0.0001762,2]
[381033711,1755963043261,-2567.792111,0.0001762,2]
[381033712,1755963043276,-151.0,0.0001762,2]
[381033713,1755963043291,-151.0,0.0001762,2]
[381033714,1755963043306,-2567.792111,0.0001762,2]
[381033715,1755963043322,-151.0,0.0001762,2]
[381033716,1755963043338,-12000.0,0.0001762,2]
[381033717,1755963043355,-206.678041,0.0001762,2]
[381033718,1755963043367,-12000.0,0.0001762,2]
[381033719,1755963043383,-12000.0,0.0001762,2]
[381033720,1755963043398,-12000.0,0.0001762,2]
[381033721,1755963043413,-670.0,0.00017621,2]
[381033722,1755963043430,-500.0,0.0001764,2]
[381033723,1755963043446,-5101.533,0.00017655,2]
[381033724,1755963043461,-320.821,0.00017655,2]
[381033725,1755963043476,-500.0,0.00017664,2]
[381033726,1755963043490,-164.10560054,0.00017673,2]
[381033727,1755963043507,-500.0,0.00017673,2]
[381033728,1755963043522,-500.0,0.00017673,2]
[381033729,1755963043536,-500.0,0.00017673,2]
[381033730,1755963043547,-178.0,0.0001768,2]
[381033731,1755963043560,-500.0,0.00017688,2]
[381033732,1755963043578,-13252.8,0.000177,2]
[381033733,1755963043590,-500.0,0.00017712,2]
[381033734,1755963043601,-880.81066434,0.00017727,2]
[381033735,1755963043618,-2166.6738,0.0001773,2]
[381033736,1755963043633,-500.0,0.00017736,2]
[381033737,1755963043645,-501.96369864,0.00017756,2]
[381033738,1755963043658,-500.0,0.0001776,2]
[381033739,1755963043671,-981.0,0.00017771,2]
[381033740,1755963043683,-500.0,0.00017784,2]
[381033741,1755963043697,-397.81,0.00017794,2]
[381033742,1755963043711,-154.0,0.000178,4]
[381033743,1755963043723,-154.0,0.000178,4]
[381033744,1755963043737,-500.0,0.00017808,2]
[381033745,1755963043750,-27891.2973699,0.0001783,2]
[381033746,1755963043763,-500.0,0.00017856,2]
[381033747,1755963043784,-300.0,0.00017899,2]
[381033748,1755963043796,-300.0,0.00017899,2]
[381033749,1755963043809,-70408.78928097,0.000179,2]
[381033750,1755963043829,-2519.61499444,0.000179,2]
[381033751,1755963043849,-379.87879999,0.000179,2]
[381033752,1755963043880,-1969.5695428,0.000179,2]
[381033754,1755963043916,-704.4257833,0.000179,2]
[381033768,1755963044877,-700.0,0.0001762,2]
[381033769,1755963044893,-2089.4,0.0001762,2]
[381033770,1755963044929,-9210.6,0.0001762,2]
[381033771,1755963044942,-4689.5194985,0.000179,2]
[381033772,1755963044956,-1000.0,0.000179,2]
[381033773,1755963044968,-158.86127688,0.000179,2]
[381033774,1755963044983,-5000.0,0.000179,2]
[381033775,1755963044996,-670.0,0.00017917,2]
[381033776,1755963045009,-222.93,0.00017919,2]
[381033777,1755963045022,-500.0,0.00017936,2]
[381033778,1755963045034,-150.0,0.00017936,2]
[381033779,1755963045048,-500.0,0.00017936,2]
[381033780,1755963045062,-500.0,0.00017936,2]
[381033781,1755963045076,-500.0,0.00017936,2]
[381033782,1755963045088,-500.0,0.00017936,2]
[381033783,1755963045103,-1364.0,0.00017936,2]
[381033784,1755963045116,-151.82839057,0.00017936,2]
[381033785,1755963045129,-496.0,0.00017936,2]
[381033786,1755963045142,-764.0,0.00017936,2]
[381033787,1755963045155,-150.0,0.00017936,2]
[381033788,1755963045169,-200.0,0.00017936,2]
[381033789,1755963045183,-300.0,0.00017936,2]
[381033790,1755963045196,-150.0,0.00017936,2]
[381033791,1755963045209,-150.0,0.00017936,2]
[381033792,1755963045221,-150.0,0.00017936,2]
[381033793,1755963045236,-202.18969289,0.00017936,2]
[381033794,1755963045249,-500.0,0.00017936,2]
[381033795,1755963045262,-500.0,0.00017936,2]
[381033796,1755963045274,-150.0,0.00017936,2]
[381033797,1755963045287,-150.0,0.00017936,2]
[381033798,1755963045300,-500.0,0.00017936,2]
[381033799,1755963045313,-150.0,0.00017936,2]
[381033800,1755963045326,-670.0,0.00017968,2]
[381033801,1755963045340,-1000.0,0.0001797,2]
[381033802,1755963045358,-1801.92571414,0.0001797,2]
[381033803,1755963045371,-500.0,0.00017973,2]
[381033804,1755963045384,-500.0,0.00017973,2]
[381033805,1755963045397,-500.0,0.00017973,2]
[381033806,1755963045410,-500.0,0.00017973,2]
[381033807,1755963045424,-522.15161724,0.00017973,2]
[381033808,1755963045437,-500.0,0.00017973,2]
[381033809,1755963045451,-500.0,0.00017973,2]
[381033810,1755963045465,-500.0,0.00017973,2]
[381033811,1755963045480,-276.17418804,0.00017973,2]
[381033812,1755963045493,-500.0,0.00017973,2]
[381033813,1755963045507,-500.0,0.00017973,2]
[381033814,1755963045520,-500.0,0.00017973,2]
[381033815,1755963045534,-500.0,0.00017973,2]
[381033816,1755963045547,-161.82649118,0.00017973,2]
[381033817,1755963045560,-646.05499372,0.00017973,2]
[381033818,1755963045573,-500.0,0.00017973,2]
[381033819,1755963045587,-500.0,0.00017973,2]
[381033820,1755963045599,-5792.0665385,0.00017987,2]
[381033821,1755963045612,-162.1779981,0.00017987,2]
[381033822,1755963045625,-324.3559961,0.00017987,2]
[381033823,1755963045638,-200.0,0.0001799,2]
[381033824,1755963045652,-411.7666606,0.00017998,2]
[381033825,1755963045666,-10023.2035618,0.00017998,2]
[381033826,1755963045680,-300.0,0.00017999,2]
[381033827,1755963045693,-300.0,0.00017999,2]
[381033828,1755963045706,-300.0,0.00017999,2]
[381033829,1755963045719,-300.0,0.00017999,2]
[381033830,1755963045733,-300.0,0.00017999,2]
[381033831,1755963045747,-300.0,0.00017999,2]
[381033832,1755963045760,-300.0,0.00017999,2]
[381033833,1755963045774,-35512.4215054,0.00018,2]
[381033834,1755963045787,-538229.53534362,0.00018,2]
[381033835,1755963045801,-200.0,0.00018,7]
[381033836,1755963045815,-4400.0,0.00018,2]
[381033837,1755963045829,-18300.29587842,0.00018,2]
[381033838,1755963045843,-163737.16448905,0.00018,2]
[381033839,1755963045857,-212.0,0.00018,2]
[381033840,1755963045870,-228.0,0.00018,2]
[381033841,1755963045884,-228.0,0.00018,2]
[381033842,1755963045897,-276.86276304,0.00018,2]
[381033843,1755963045910,-151.0,0.00018,2]
[381033844,1755963045923,-200.0,0.00018,2]
[381033845,1755963045936,-900.0,0.00018,2]
[381033846,1755963045949,-900.0,0.00018,2]
[381033847,1755963045962,-900.0,0.00018,2]
[381033848,1755963045976,-900.0,0.00018,2]
[381033849,1755963045989,-900.0,0.00018,2]
[381033850,1755963046003,-900.0,0.00018,2]
[381033851,1755963046017,-900.0,0.00018,2]
[381033852,1755963046030,-900.0,0.00018,2]
[381033853,1755963046044,-200.253743,0.00018,2]
[381033854,1755963046057,-2266.70344,0.00018,2]
[381033855,1755963046070,-151.0,0.00018,2]
[381033856,1755963046083,-151.0,0.00018,2]
[381033857,1755963046095,-422.006077,0.00018,2]
[381033858,1755963046109,-151.0,0.00018,2]
[381033859,1755963046122,-151.0,0.00018,2]
[381033860,1755963046135,-422.006077,0.00018,2]
[381033861,1755963046149,-422.006077,0.00018,2]
[381033862,1755963046161,-151.0,0.00018,2]
[381033863,1755963046175,-422.006077,0.00018,2]
[381033864,1755963046188,-207.077595,0.00018,2]
[381033865,1755963046201,-229.717209,0.00018,2]
[381033866,1755963046214,-257.780093,0.00018,2]
[381033867,1755963046228,-76861.4405075,0.00018,2]
[381033868,1755963046241,-257.780093,0.00018,2]
[381033869,1755963046255,-151.0,0.00018,2]
[381033870,1755963046269,-257.780093,0.00018,2]
[381033871,1755963046282,-151.0,0.00018,2]
[381033872,1755963046295,-151.0,0.00018,2]
[381033873,1755963046308,-257.780093,0.00018,2]
[381033874,1755963046323,-151.0,0.00018,2]
[381033875,1755963046337,-151.0,0.00018,2]
[381033876,1755963046355,-187.625725,0.00018,2]
[381033877,1755963046367,-151.0,0.00018,2]
[381033878,1755963046377,-867.141915,0.00018,2]
[381033879,1755963046387,-867.141915,0.00018,2]
[381033880,1755963046399,-227.286665,0.00018,2]
[381033881,1755963046409,-867.141915,0.00018,2]
[381033882,1755963046419,-151.0,0.00018,2]
[381033883,1755963046430,-867.141915,0.00018,2]
[381033884,1755963046440,-235.783258,0.00018,2]
[381033885,1755963046450,-2051.600279,0.00018,2]
[381033886,1755963046460,-2051.600279,0.00018,2]
[381033887,1755963046470,-151.0,0.00018,2]
[381033888,1755963046482,-153.284864,0.00018,2]
[381033889,1755963046492,-227.286665,0.00018,2]
[381033890,1755963046502,-2051.600279,0.00018,2]
[381033891,1755963046513,-153.284864,0.00018,2]
[381033892,1755963046526,-151.0,0.00018,2]
[381033893,1755963046538,-227.286665,0.00018,2]
[381033894,1755963046554,-2051.600279,0.00018,2]
[381033895,1755963046571,-153.284864,0.00018,2]
[381033896,1755963046582,-227.286665,0.00018,2]
[381033898,1755963047135,-153.284864,0.00018,2]
[381033899,1755963047171,-151.0,0.00018,2]
[381033900,1755963047196,-767.820458,0.00018,2]
[381033901,1755963047232,-24446.92947228,0.00018,2]
[381033902,1755963047251,-767.820458,0.00018,2]
[381033903,1755963047261,-245.222234,0.00018,2]
[381033904,1755963047270,-245.222234,0.00018,2]
[381033905,1755963047280,-767.820458,0.00018,2]
[381033906,1755963047289,-245.222234,0.00018,2]
[381033907,1755963047299,-767.820458,0.00018,2]
[381033908,1755963047308,-245.222234,0.00018,2]
[381033909,1755963047318,-151.0,0.00018,2]
[381033910,1755963047327,-151.0,0.00018,2]
[381033911,1755963047337,-1137.142783,0.00018,2]
[381033912,1755963047350,-1137.142783,0.00018,2]
[381033913,1755963047359,-151.0,0.00018,2]
[381033914,1755963047368,-1137.142783,0.00018,2]
[381033915,1755963047377,-151.0,0.00018,2]
[381033916,1755963047387,-1137.142783,0.00018,2]
[381033917,1755963047397,-1121.790224,0.00018,2]
[381033918,1755963047407,-171.150891,0.00018,2]
[381033919,1755963047416,-1121.790224,0.00018,2]
[381033920,1755963047428,-171.150891,0.00018,2]
[381033921,1755963047437,-179.113786,0.00018,2]
[381033922,1755963047447,-1121.790224,0.00018,2]
[381033923,1755963047456,-241.536099,0.00018,2]
[381033924,1755963047466,-151.0,0.00018,2]
[381033925,1755963047475,-171.150891,0.00018,2]
[381033926,1755963047486,-525.468122,0.00018,2]
[381033927,1755963047495,-179.113786,0.00018,2]
[381033928,1755963047505,-1121.790224,0.00018,2]
[381033929,1755963047515,-241.536099,0.00018,2]
[381033930,1755963047525,-171.150891,0.00018,2]
[381033931,1755963047534,-525.468122,0.00018,2]
[381033932,1755963047543,-179.113786,0.00018,2]
[381033933,1755963047553,-241.536099,0.00018,2]
[381033934,1755963047562,-525.468122,0.00018,2]
[381033935,1755963047571,-179.113786,0.00018,2]
[381033936,1755963047580,-1701.967032,0.00018,2]
[381033937,1755963047590,-151.0,0.00018,2]
[381033938,1755963047599,-525.468122,0.00018,2]
[381033939,1755963047609,-241.536099,0.00018,2]
[381033940,1755963047618,-273.45771247,0.00018,2]
[381033941,1755963047627,-1701.967032,0.00018,2]
[381033942,1755963047637,-1701.967032,0.00018,2]
[381033943,1755963047646,-1701.967032,0.00018,2]
[381033944,1755963047656,-151.0,0.00018,2]
[381033945,1755963047666,-151.0,0.00018,2]
[381033946,1755963047675,-151.0,0.00018,2]
[381033947,1755963047684,-151.0,0.00018,2]
[381033948,1755963047694,-278.439002,0.00018,2]
[381033949,1755963047703,-2182.797836,0.00018,2]
[381033950,1755963047712,-2182.797836,0.00018,2]
[381033951,1755963047721,-2182.797836,0.00018,2]
[381033952,1755963047734,-2182.797836,0.00018,2]
[381033953,1755963047744,-425.989063,0.00018,2]
[381033954,1755963047753,-425.989063,0.00018,2]
[381033955,1755963047762,-200.0,0.00018,2]
[381033956,1755963047772,-151.0,0.00018,2]
[381033957,1755963047781,-425.989063,0.00018,2]
[381033958,1755963047791,-151.0,0.00018,2]
[381033959,1755963047800,-2718.160065,0.00018,2]
[381033960,1755963047810,-425.989063,0.00018,2]
[381033961,1755963047819,-2718.160065,0.00018,2]
[381033962,1755963047829,-2718.160065,0.00018,2]
[381033963,1755963047838,-900.0,0.00018,2]
[381033964,1755963047848,-900.0,0.00018,2]
[381033965,1755963047857,-900.0,0.00018,2]
[381033966,1755963047867,-900.0,0.00018,2]
[381033967,1755963047876,-900.0,0.00018,2]
[381033968,1755963047886,-2718.160065,0.00018,2]
[381033969,1755963047896,-900.0,0.00018,2]
[381033970,1755963047905,-900.0,0.00018,2]
[381033971,1755963047914,-330.99234823,0.00018,2]
[381033972,1755963047924,-151.0,0.00018,2]
[381033973,1755963047933,-435.273855,0.00018,2]
[381033974,1755963047943,-435.273855,0.00018,2]
[381033975,1755963047952,-435.273855,0.00018,2]
[381033976,1755963047962,-151.0,0.00018,2]
[381033977,1755963047972,-282.18065,0.00018,2]
[381033978,1755963047982,-151.0,0.00018,2]
[381033979,1755963047992,-282.18065,0.00018,2]
[381033980,1755963048002,-282.18065,0.00018,2]
[381033981,1755963048011,-435.273855,0.00018,2]
[381033982,1755963048021,-282.18065,0.00018,2]
[381033983,1755963048030,-3503.644184,0.00018,2]
[381033984,1755963048040,-248.758551,0.00018,2]
[381033985,1755963048049,-3503.644184,0.00018,2]
[381033986,1755963048059,-248.758551,0.00018,2]
[381033987,1755963048069,-3503.644184,0.00018,2]
[381033988,1755963048078,-1682.055688,0.00018,2]
[381033989,1755963048088,-248.758551,0.00018,2]
[381033990,1755963048097,-3503.644184,0.00018,2]
[381033991,1755963048106,-248.758551,0.00018,2]
[381033992,1755963048116,-1682.055688,0.00018,2]
[381033993,1755963048125,-13252.74,0.00018,2]
[381033994,1755963048135,-1682.055688,0.00018,2]
[381033995,1755963048145,-1682.055688,0.00018,2]
[381033996,1755963048155,-151.0,0.00018,2]
[381033997,1755963048164,-151.0,0.00018,2]
[381033998,1755963048175,-2567.792111,0.00018,2]
[381033999,1755963048185,-151.0,0.00018,2]
[381034000,1755963048195,-2567.792111,0.00018,2]
[381034001,1755963048204,-151.0,0.00018,2]
[381034002,1755963048214,-2567.792111,0.00018,2]
[381034003,1755963048223,-151.0,0.00018,2]
[381034004,1755963048232,-151.062649,0.00018,2]
[381034005,1755963048242,-2567.792111,0.00018,2]
[381034006,1755963048251,-12000.0,0.00018,2]
[381034007,1755963048260,-151.0,0.00018,2]
[381034008,1755963048270,-12000.0,0.00018,2]
[381034009,1755963048279,-994.74234405,0.00018,2]
[381034010,1755963049021,-1865.21236918,0.00018,2]
[381034011,1755963049033,-1152.9573182,0.00018,2]
[381034012,1755963049050,-12000.0,0.0001762,2]
[381034013,1755963049060,-7987.08796857,0.00018,2]
[381034014,1755963049069,-12000.0,0.00018,2]
[381034015,1755963049078,-507.18322776,0.00018,2]
[381034016,1755963049094,-5821.59382798,0.00018,2]
[381034017,1755963049122,-150.0,0.00014199,3]
[381034018,1755963049132,-5671.22294426,0.00018,2]
[381034019,1755963049142,-150.0,0.00018038,2]
[381034020,1755963049151,-400.0,0.00018082,2]